Cogmind - Beta 12 X1 @@@ ROGUE MODE // 2022.09.01 @ 16:50:22 Player: btmk16 Result: Destroyed by G-73 Enforcer with Heavy Laser Performance ------------- Evolutions (9) 4500 Regions Visited (16) 3200 Robots Destroyed (36) 180 Value Destroyed (1196) 1196 Prototype IDs (4) 80 Alien Tech Used (0) 0 Bonus (1887) 1887 TOTAL SCORE: 11043 Bonus ------- High Alert Combat Kills 183 Follower Combat Kills 204 Entered DSFs 1500 Cogmind --------- Core Integrity 0/1600 Matter 295/300 Energy 58/100 System Corruption 0% Temperature Cool (0) Movement Flying (40) Location -1/Access Parts ------- > --- POWER (2) -------- (None) > --- PROPULSION (8) --- Xenon Bombardment Thruster > --- UTILITY (13) ----- Advanced Signal Interpreter Transport Network Coupler Advanced Melee Analysis Suite Advanced Melee Analysis Suite Advanced Corruption Screen > --- WEAPON (2) ------- Vibroblade > --- INVENTORY (5) ---- Xenon Bombardment Thruster Advanced System Restoration Module Hypervelocity Railgun Peak State ------------ > --- POWER ------------ Light Quantum Reactor Light Quantum Reactor > --- PROPULSION ------- Gyrokinetic Inverter Improved Linear Gravjet Combat Linear Gravjet Combat Linear Gravjet Combat Linear Gravjet Combat Linear Gravjet Combat Linear Gravjet Combat Linear Gravjet > --- UTILITY ---------- Advanced Heat Sink Large Storage Unit Advanced Signal Interpreter Transport Network Coupler Advanced Melee Analysis Suite Advanced Melee Analysis Suite Advanced Melee Analysis Suite Improved Hacking Suite Improved System Shield Improved System Shield Improved Component Analysis Suite Advanced Corruption Screen Improved System Restoration Module > --- WEAPON ----------- Vibroblade Enhanced Force Lance > --- INVENTORY -------- Light Quantum Reactor Biometal Leg Cooled Impulse Thruster Cooled Q-thruster Huge Storage Unit Medium Matter Pod Advanced Force Field Advanced System Restoration Module Enhanced Nova Cannon Hypervelocity Railgun Hypervelocity Railgun Enhanced Force Lance [Rating: 170] Favorites ----------- Power Light Quantum Reactor Engine Light Angular Momentum Engine Reactor Light Quantum Reactor Propulsion Combat Linear Gravjet Treads Light Treads Hover Unit Combat Linear Gravjet Flight Unit Impulse Thruster Utility Advanced Melee Analysis Suite Device Improved System Restoration Module Storage Large Storage Unit Processor Advanced Melee Analysis Suite Hackware Improved System Shield Protection Light Armor Plating Weapon Enhanced Force Lance Energy Cannon HERF Cannon Ballistic Gun Assault Rifle Launcher Grenade Launcher Impact Weapon Great Maul Slashing Weapon Vibroblade Piercing Weapon Enhanced Force Lance Build | -11 -10 -9 -8 -7 -7 -6 -5 -5 -5 -5 -4 -3 -3 -2 -2 -1 ------- Run | Scr Mat Mat Mat Fac DSF Fac Fac Was Fac DSF Fac Res Arm Res DSF Acc Slots Evolved 18 | . . 2 2 2 . 2 2 . . . 2 2 . 2 . 2 Power 1 | . . . . 1 . . . . . . . . . . . . Propulsion 6 | . . 2 1 . . 1 . . . . . 2 . . . . Utility 11 | . . . 1 1 . 1 2 . . . 2 . . 2 . 2 Weapon . | . . . . . . . . . . . . . . . . . Parts Attached 110 | 5 5 1 3 . 9 8 2 . . 2 16 9 13 3 6 28 Power 17 | . 1 . 1 . 1 3 . . . . 2 1 1 . 1 6 Engine 8 | . 1 . 1 . 1 3 . . . . 2 . . . . . Core . | . . . . . . . . . . . . . . . . . Reactor 9 | . . . . . . . . . . . . 1 1 . 1 6 Propulsion 40 | 2 2 . 1 . 5 1 . . . 1 7 3 3 1 5 9 Treads 2 | 2 . . . . . . . . . . . . . . . . Leg . | . . . . . . . . . . . . . . . . . Wheel . | . . . . . . . . . . . . . . . . . Hover 9 | . . . . . . . . . . . . . 1 1 5 2 Flight 29 | . 2 . 1 . 5 1 . . . 1 7 3 2 . . 7 Utility 33 | 1 1 . 1 . 3 3 1 . . . 4 4 5 2 . 8 Device 14 | . . . 1 . 1 2 1 . . . 2 2 1 1 . 3 Storage 3 | 1 . . . . . . . . . . . . 1 . . 1 Processor 11 | . . . . . 2 1 . . . . 2 2 2 1 . 1 Hackware 3 | . . . . . . . . . . . . . . . . 3 Protection 2 | . 1 . . . . . . . . . . . 1 . . . Artifact . | . . . . . . . . . . . . . . . . . Weapon 20 | 2 1 1 . . . 1 1 . . 1 3 1 4 . . 5 Energy Gun . | . . . . . . . . . . . . . . . . . Energy Cannon 2 | . . . . . . . . . . . 2 . . . . . Ballistic Gun 4 | 2 . . . . . . . . . . . . 2 . . . Ballistic Cannon . | . . . . . . . . . . . . . . . . . Launcher 4 | . 1 1 . . . 1 . . . 1 . . . . . . Special Weapon . | . . . . . . . . . . . . . . . . . Impact Weapon 1 | . . . . . . . 1 . . . . . . . . . Slashing Weapon 4 | . . . . . . . . . . . 1 1 . . . 2 Piercing Weapon 5 | . . . . . . . . . . . . . 2 . . 3 Special Melee Weapon . | . . . . . . . . . . . . . . . . . Unidentified Prototypes 2 | . . . . . . . . . . . 1 . . . . 1 Parts Lost 60 | . . 1 1 . 2 3 . . . 7 . 7 8 1 1 29 Power 8 | . . . 1 . . . . . . . . 1 1 . . 5 Propulsion 32 | . . 1 . . 1 1 . . . 5 . 4 5 . . 15 Utility 16 | . . . . . 1 2 . . . 1 . 1 2 1 1 7 Weapon 4 | . . . . . . . . . . 1 . 1 . . . 2 Highest Loss Streak 13 | . . 1 1 . 2 3 . . . 7 . 5 8 1 1 13 To Critical Strikes . | . . . . . . . . . . . . . . . . . Average Slot Usage (%) 68 | . 58 33 23 15 38 81 70 76 76 41 60 86 74 41 53 79 Engine 3 | . 3 11 9 . 1 11 11 11 11 . 6 3 . . . . Reactor 2 | . . . . . . . . . . . . 3 3 . 1 6 Hover 10 | . . . . . . . . . . . . . 1 6 19 27 Flight 13 | . 10 16 9 7 15 37 29 29 29 8 21 28 18 . . . Device 8 | . . . 5 7 9 10 7 11 11 8 7 17 16 1 4 6 Storage 1 | . . . . . . . . . . . . . . 4 1 3 Processor 18 | . . . . . 11 19 17 17 17 17 21 23 23 23 21 23 Hackware 1 | . . . . . . . . . . . . . . . . 4 Ballistic Gun 1 | . 19 5 . . . . . . . . . . . . . . Slashing Weapon 1 | . . . . . . . . . . . . 4 . . . 3 Piercing Weapon 2 | . . . . . . . . . . . . . 7 4 4 3 Naked Turns . | . . . . . . . . . . . . . . . . . Heaviest Build 68 | 3 5 5 4 1 6 20 24 24 24 24 41 43 36 16 26 68 Greatest Support 127 | 3 8 8 4 4 27 23 28 28 28 28 42 57 51 25 110 127 Greatest Overweight (x) 10 | . . . . . . . . . . 1 . . . . . 10 Average Overweight (x) . | . . . . . . . . . . . . . . . . . Largest Inventory Capacity 15 | 8 5 5 5 5 5 5 5 5 5 5 5 5 5 5 5 15 Average Capacity 7 | 5 5 5 5 5 5 5 5 5 5 5 5 5 5 5 5 13 Most Carried 15 | 3 5 5 5 5 5 5 5 4 4 5 5 5 5 5 5 15 Average Carried 6 | 1 4 4 5 5 4 3 4 4 4 4 4 4 4 4 4 10 Final Capacity 5 | 5 5 5 5 5 5 5 5 5 5 5 5 5 5 5 5 5 Final Carried 5 | 2 5 5 5 5 5 5 4 4 4 5 5 4 5 5 4 3 Class Distribution -------------------- 41% | Mutant 23% | Scavenger-Mutant 19% | Infiltrator-Sprinter 12% | Sprinter Dominant Class ---------------- Mutant | -10/Materials Mutant | -9/Materials Mutant | -8/Materials Mutant | -7/Factory Mutant | -7/DSF Sprinter | -6/Factory Infiltrator-Sprinter | -5/Factory Infiltrator-Sprinter | -5/Waste Infiltrator-Sprinter | -5/Factory Infiltrator-Sprinter | -5/DSF Sprinter | -4/Factory Infiltrator-Sprinter | -3/Research Infiltrator-Sprinter | -3/Armory Mutant | -2/Research Mutant | -2/DSF Scavenger-Mutant | -1/Access Resources | -11 -10 -9 -8 -7 -7 -6 -5 -5 -5 -5 -4 -3 -3 -2 -2 -1 ----------- Run | Scr Mat Mat Mat Fac DSF Fac Fac Was Fac DSF Fac Res Arm Res DSF Acc Matter Collected 1243 | 194 37 . . . 6 53 250 . . 20 . 85 19 . 45 534 Remotely . | . . . . . . . . . . . . . . . . . Salvage Created 1594 | . 33 27 . . . 203 250 . . . . . 65 . 26 990 Parts 80 | . 5 7 . . . 11 6 . . . . . 3 . . 48 Haulers Intercepted 2 | . . . . . . . . . . . . . . . . 2 Recyclers Shooed . | . . . . . . . . . . . . . . . . . Parts Field Recycled . | . . . . . . . . . . . . . . . . . Retrieved Matter . | . . . . . . . . . . . . . . . . . Parts Self-Destructed . | . . . . . . . . . . . . . . . . . Prevented . | . . . . . . . . . . . . . . . . . Kills | -11 -10 -9 -8 -7 -7 -6 -5 -5 -5 -5 -4 -3 -3 -2 -2 -1 ------- Run | Scr Mat Mat Mat Fac DSF Fac Fac Was Fac DSF Fac Res Arm Res DSF Acc Combat Hostiles Destroyed 24 | . 3 3 . . . 5 2 . . . . . 1 . . 10 Melee 12 | . . . . . . . 1 . . . . . 1 . . 10 Guns 1 | . 1 . . . . . . . . . . . . . . . AOE 10 | . 2 3 . . . 5 . . . . . . . . . . Classes Destroyed 9 | . 2 . . . . 2 2 . . . . . 1 . . 2 Worker 6 | . 1 1 . . . . 1 . . . . . . . . 3 Builder 1 | . . . . . . 1 . . . . . . . . . . Hauler 2 | . . . . . . . . . . . . . . . . 2 Recycler 1 | . . . . . . . 1 . . . . . . . . . Operator 2 | . . . . . . . . . . . . . . . . 2 Swarmer 15 | . 3 3 . . . 4 . . . . . . . . . 5 Grunt 4 | . . . . . . 1 1 . . . . . . . . 2 Hunter 3 | . . . . . . . 1 . . . . . . . . 2 Programmer 2 | . . . . . . . . . . . . . 1 . . 1 Best Kill Streak 6 | . 4 4 . . . 6 4 . . . . . 1 . . 4 Combat Bots Only 5 | . 3 3 . . . 5 2 . . . . . 1 . . 3 Max Kills in Single Turn 3 | . 2 3 . . . 3 1 . . . . . 1 . . 1 Gunslinging . | . . . . . . . . . . . . . . . . . Exploded 2 | . 2 2 . . . 2 . . . . . . . . . . Melee 1 | . . . . . . . 1 . . . . . 1 . . 1 Uniques/NPCs Destroyed . | . . . . . . . . . . . . . . . . . Combat | -11 -10 -9 -8 -7 -7 -6 -5 -5 -5 -5 -4 -3 -3 -2 -2 -1 -------- Run | Scr Mat Mat Mat Fac DSF Fac Fac Was Fac DSF Fac Res Arm Res DSF Acc Damage Taken 8238 | . 342 193 154 . 151 361 50 . . 645 65 632 877 138 401 4229 Core 3387 | . 64 107 121 . 125 129 50 . . 379 25 159 254 87 273 1614 Absorbed by Shields . | . . . . . . . . . . . . . . . . . Redirected to Shielding 40 | . . . . . . . . . . . . . 40 . . . Core Remaining (%) 78 | 100 74 73 78 . 82 84 . . . 57 97 . 68 . 75 . Volleys Fired 12 | . 5 2 . . . 3 . . . 1 1 . . . . . Largest 2 | . 2 1 . . . 1 . . . 1 1 . . . . . Hottest 88 | . 50 30 . . . 30 . . . 30 88 . . . . . Shots Fired 17 | . 10 2 . . . 3 . . . 1 1 . . . . . Gun 5 | . 5 . . . . . . . . . . . . . . . Cannon 1 | . . . . . . . . . . . 1 . . . . . Launcher 11 | . 5 2 . . . 3 . . . 1 . . . . . . Special . | . . . . . . . . . . . . . . . . . Kinetic 5 | . 5 . . . . . . . . . . . . . . . Thermal . | . . . . . . . . . . . . . . . . . Explosive 11 | . 5 2 . . . 3 . . . 1 . . . . . . Electromagnetic 1 | . . . . . . . . . . . 1 . . . . . Robot Hit Streak 4 | . 3 3 . . . 4 . . . . 1 . . . . . Robot Miss Streak 4 | . 4 . . . . . . . . 1 . . . . . . Penetration Max . | . . . . . . . . . . . . . . . . . Secondary Targets . | . . . . . . . . . . . . . . . . . Shots Hit Robots 60 | . 4 2 . . . 1 5 . . . 1 . 1 1 . 45 Core Hits 44 | . 7 5 . . . 9 2 . . 2 . . 1 . . 18 Critical Kills 1 | . . . . . . . 1 . . . . . . . . . Critical Parts Destroyed 1 | . . . . . . . 1 . . . . . . . . . Critical Strikes 9 | . . . . . . . 2 . . . . . 1 . . 6 Smash 2 | . . . . . . . 2 . . . . . . . . . Sever 5 | . . . . . . . . . . . . . . . . 5 Impale 2 | . . . . . . . . . . . . . 1 . . 1 Melee Attacks 69 | . . . . . . . 6 . . . . . 7 1 2 53 Impact 6 | . . . . . . . 6 . . . . . . . . . Slashing 45 | . . . . . . . . . . . . . . . . 45 Piercing 18 | . . . . . . . . . . . . . 7 1 2 8 Sneak Attacks 11 | . . . . . . . 4 . . . . . . 1 . 6 Combat Hostiles 2 | . . . . . . . 2 . . . . . . . . . Follow-up Attacks 2 | . . . . . . . . . . . . . . . . 2 Damage Inflicted 4493 | . 245 149 . . . 312 485 . . 50 54 1 73 108 . 3016 Guns 27 | . 27 . . . . . . . . . . . . . . . Cannons 51 | . . . . . . . . . . . 51 . . . . . Explosions 729 | . 218 149 . . . 312 . . . 50 . . . . . . Melee 3680 | . . . . . . . 483 . . . . . 73 108 . 3016 Ramming 6 | . . . . . . . 2 . . . 3 1 . . . . Kinetic 27 | . 27 . . . . . . . . . . . . . . . Thermal . | . . . . . . . . . . . . . . . . . Explosive 729 | . 218 149 . . . 312 . . . 50 . . . . . . Electromagnetic 51 | . . . . . . . . . . . 51 . . . . . Impact 483 | . . . . . . . 483 . . . . . . . . . Slashing 2519 | . . . . . . . . . . . . . . . . 2519 Piercing 678 | . . . . . . . . . . . . . 73 108 . 497 Highest Corruption 10 | . . . . . . . . 7 7 10 . . . . . . Average Corruption 8 | . . . . . . . . 7 7 9 . . . . . . Corruption Purged . | . . . . . . . . . . . . . . . . . Corruption Blocked 4 | . . . . . . . . . . . . 1 . . . 3 Overload Shots . | . . . . . . . . . . . . . . . . . Overflow Damage 538 | . . . . . . 6 217 . . . 16 . . . . 299 Projectiles 16 | . . . . . . . . . . . 16 . . . . . Explosions 6 | . . . . . . 6 . . . . . . . . . . Melee 516 | . . . . . . . 217 . . . . . . . . 299 Knockbacks 2 | . . . . . . . 2 . . . . . . . . . Impact 2 | . . . . . . . 2 . . . . . . . . . Kinetic . | . . . . . . . . . . . . . . . . . Secondary . | . . . . . . . . . . . . . . . . . Self-Inflicted Damage 84 | . 18 5 . . . 60 . . . . 1 . . . . . Shots 4 | . 2 1 . . . 1 . . . . . . . . . . Rammed 7 | . . . . . . . 4 . . . 2 1 . . . . Targets Rammed 7 | . . . . . . . 4 . . . 2 1 . . . . Kicked . | . . . . . . . . . . . . . . . . . Crushed . | . . . . . . . . . . . . . . . . . Highest Temperature 301 | . 9 12 . . . 51 11 22 22 . 301 283 34 . . 279 Average Temperature 96 | . 5 9 . . . 28 5 12 12 . 125 128 20 . . 106 Received Heat Transfer 1424 | . 168 114 90 . 6 103 . . . 138 18 18 301 9 . 459 Effects 3 | . . . . . . . . . . . . 2 . . . 1 Interference 3 | . . . . . . . . . . . . 2 . . . 1 Siege Activations . | . . . . . . . . . . . . . . . . . Robots Corrupted . | . . . . . . . . . . . . . . . . . Combat Hostiles . | . . . . . . . . . . . . . . . . . Parts Fried 3 | . . . . . . . 3 . . . . . . . . . Impact Corruptions 4 | . . . . . . . 4 . . . . . . . . . Robots Melted . | . . . . . . . . . . . . . . . . . Combat Hostiles . | . . . . . . . . . . . . . . . . . Parts Melted . | . . . . . . . . . . . . . . . . . Heat Transferred . | . . . . . . . . . . . . . . . . . Parts Sabotaged 2 | . . . . . . . . . . . . . 2 . . . Parts Stolen . | . . . . . . . . . . . . . . . . . Parts Stripped . | . . . . . . . . . . . . . . . . . Power Chain Reactions . | . . . . . . . . . . . . . . . . . Missiles Intercepted . | . . . . . . . . . . . . . . . . . Alert | -11 -10 -9 -8 -7 -7 -6 -5 -5 -5 -5 -4 -3 -3 -2 -2 -1 ------- Run | Scr Mat Mat Mat Fac DSF Fac Fac Was Fac DSF Fac Res Arm Res DSF Acc Peak Influence 720 | . 201 238 165 70 49 366 231 110 77 57 200 350 422 202 160 720 Initial 197 | . . 84 100 70 49 23 179 80 77 57 . 105 183 197 155 96 Average 217 | . 95 113 125 70 37 155 190 97 77 21 64 150 281 199 151 346 Maximum Alert Level 3 | . 1 1 . . . 1 1 . . . 1 1 2 1 . 3 Low Security (%) 60 | 100 93 89 100 100 100 58 71 100 100 100 96 77 13 59 100 37 Level 1 24 | . 6 10 . . . 41 28 . . . 3 22 74 40 . 20 Level 2 14 | . . . . . . . . . . . . . 12 . . 38 Level 3 1 | . . . . . . . . . . . . . . . . 3 Level 4 . | . . . . . . . . . . . . . . . . . Level 5 . | . . . . . . . . . . . . . . . . . High Security . | . . . . . . . . . . . . . . . . . Max Security . | . . . . . . . . . . . . . . . . . Squads Dispatched 17 | . 1 1 2 . . 1 . . 1 1 2 3 1 . . 4 Investigation 6 | . . 1 . . . . . . 1 . 1 1 1 . . 1 Extermination 1 | . . . . . . . . . . . . . . . . 1 Reinforcement 10 | . 1 . 2 . . 1 . . . 1 1 2 . . . 2 Assault . | . . . . . . . . . . . . . . . . . Garrison . | . . . . . . . . . . . . . . . . . Intercept . | . . . . . . . . . . . . . . . . . Searches Triggered 1 | . . . . . . . . . . . . . . . . 1 Construction Impeded . | . . . . . . . . . . . . . . . . . Haulers Reinforced . | . . . . . . . . . . . . . . . . . Active Scanning Responses . | . . . . . . . . . . . . . . . . . Cargo Convoy Interrupts . | . . . . . . . . . . . . . . . . . Stealth | -11 -10 -9 -8 -7 -7 -6 -5 -5 -5 -5 -4 -3 -3 -2 -2 -1 --------- Run | Scr Mat Mat Mat Fac DSF Fac Fac Was Fac DSF Fac Res Arm Res DSF Acc Distress Signals 6 | . 1 . 1 . . 1 . . . . 1 2 . . . . Communications Jammed . | . . . . . . . . . . . . . . . . . Distress Signals . | . . . . . . . . . . . . . . . . . Times Spotted 177 | . 12 10 14 . 2 15 . 2 . 4 14 24 18 1 2 59 Peak Tracking Total 18 | . 8 9 13 . 2 10 . 2 . 4 10 15 12 1 2 18 Tactical Retreats 19 | . . . . . 1 3 . . . . . 3 . . . 12 Traps | -11 -10 -9 -8 -7 -7 -6 -5 -5 -5 -5 -4 -3 -3 -2 -2 -1 ------- Run | Scr Mat Mat Mat Fac DSF Fac Fac Was Fac DSF Fac Res Arm Res DSF Acc Traps Triggered 5 | . . . 1 . . . 1 . . . . 1 . 1 . 1 Indirectly . | . . . . . . . . . . . . . . . . . Trap Hack Attempts . | . . . . . . . . . . . . . . . . . Triggered . | . . . . . . . . . . . . . . . . . Disarmed . | . . . . . . . . . . . . . . . . . Reprogrammed . | . . . . . . . . . . . . . . . . . Reused . | . . . . . . . . . . . . . . . . . Traps Extracted . | . . . . . . . . . . . . . . . . . Installed . | . . . . . . . . . . . . . . . . . Triggered . | . . . . . . . . . . . . . . . . . Machines | -11 -10 -9 -8 -7 -7 -6 -5 -5 -5 -5 -4 -3 -3 -2 -2 -1 ---------- Run | Scr Mat Mat Mat Fac DSF Fac Fac Was Fac DSF Fac Res Arm Res DSF Acc Machines Disabled 5 | . 1 . . . . 2 . . . . . . 1 . 1 . Max in Single Turn 1 | . 1 . . . . 1 . . . . . . 1 . 1 . Machines Sabotaged . | . . . . . . . . . . . . . . . . . Garrisons Compromised . | . . . . . . . . . . . . . . . . . Overloaded Fab Kills . | . . . . . . . . . . . . . . . . . Hacking | -11 -10 -9 -8 -7 -7 -6 -5 -5 -5 -5 -4 -3 -3 -2 -2 -1 --------- Run | Scr Mat Mat Mat Fac DSF Fac Fac Was Fac DSF Fac Res Arm Res DSF Acc Machines Accessed 21 | . 1 1 2 1 . 2 1 . 2 . 2 1 4 1 . 3 Terminals 21 | . 1 1 2 1 . 2 1 . 2 . 2 1 4 1 . 3 Fabricators . | . . . . . . . . . . . . . . . . . Repair Stations . | . . . . . . . . . . . . . . . . . Recycling Units . | . . . . . . . . . . . . . . . . . Scanalyzers . | . . . . . . . . . . . . . . . . . Garrison Access . | . . . . . . . . . . . . . . . . . Total Hacks 46 | . 4 2 6 1 . 4 2 . 4 . 6 2 9 2 . 4 Successful 13 | . . 1 2 1 . 1 . . 1 . 1 . 5 1 . . Failed 33 | . 4 1 4 . . 3 2 . 3 . 5 2 4 1 . 4 Catastrophic 11 | . 1 1 1 . . 2 . . 1 . 1 1 . . . 3 Database Lockouts . | . . . . . . . . . . . . . . . . . Manual 22 | . 4 2 4 . . 3 . . . . 1 2 5 . . 1 Terminals 46 | . 4 2 6 1 . 4 2 . 4 . 6 2 9 2 . 4 Fabricators . | . . . . . . . . . . . . . . . . . Repair Stations . | . . . . . . . . . . . . . . . . . Recycling Units . | . . . . . . . . . . . . . . . . . Scanalyzers . | . . . . . . . . . . . . . . . . . Garrison Access . | . . . . . . . . . . . . . . . . . Terminal Hacks 8 | . . . . 1 . 1 . . 1 . 1 . 3 1 . . Open Door 1 | . . . . . . . . . . . . . 1 . . . Open DSF 4 | . . . . 1 . . . . 1 . 1 . . 1 . . Level Access Points 1 | . . . . . . . . . . . . . 1 . . . Branch Access Points 1 | . . . . . . 1 . . . . . . . . . . Emergency Access Points 1 | . . . . . . . . . . . . . 1 . . . Fabricator Hacks . | . . . . . . . . . . . . . . . . . Repair Station Hacks . | . . . . . . . . . . . . . . . . . Recycling Unit Hacks . | . . . . . . . . . . . . . . . . . Scanalyzer . | . . . . . . . . . . . . . . . . . Garrison Access Hacks . | . . . . . . . . . . . . . . . . . Unauthorized Hacks 5 | . . 1 2 . . . . . . . . . 2 . . . Terminals 5 | . . 1 2 . . . . . . . . . 2 . . . Botnet 5 | . . 1 2 . . . . . . . . . 2 . . . Fabricators . | . . . . . . . . . . . . . . . . . Repair Stations . | . . . . . . . . . . . . . . . . . Recycling Units . | . . . . . . . . . . . . . . . . . Scanalyzers . | . . . . . . . . . . . . . . . . . Garrison Access . | . . . . . . . . . . . . . . . . . Data Cores Recovered 2 | . . . . . . . . . . . . . . . . 2 Used 2 | . . . . . . . . . . . . . . . . 2 Hacking Detections 18 | . 1 1 2 . . 2 1 . 2 . 1 1 4 . . 3 Full Trace Events 6 | . . 1 1 . . . . . 1 . 1 1 1 . . . Feedback Events . | . . . . . . . . . . . . . . . . . Feedback Blocked . | . . . . . . . . . . . . . . . . . Robot Schematics Acquired . | . . . . . . . . . . . . . . . . . Robots Built . | . . . . . . . . . . . . . . . . . Authchips . | . . . . . . . . . . . . . . . . . Time . | . . . . . . . . . . . . . . . . . Total Robot Build Rating . | . . . . . . . . . . . . . . . . . Part Schematics Acquired . | . . . . . . . . . . . . . . . . . Parts Built . | . . . . . . . . . . . . . . . . . Authchips . | . . . . . . . . . . . . . . . . . Time . | . . . . . . . . . . . . . . . . . Total Part Build Rating . | . . . . . . . . . . . . . . . . . Parts Repaired . | . . . . . . . . . . . . . . . . . Time . | . . . . . . . . . . . . . . . . . Parts Recycled . | . . . . . . . . . . . . . . . . . Recycled Matter . | . . . . . . . . . . . . . . . . . Retrieved Matter . | . . . . . . . . . . . . . . . . . Retrieved Components . | . . . . . . . . . . . . . . . . . Parts Scanalyzed . | . . . . . . . . . . . . . . . . . Part Schematics Acquired . | . . . . . . . . . . . . . . . . . Parts Damaged . | . . . . . . . . . . . . . . . . . Bothacking | -11 -10 -9 -8 -7 -7 -6 -5 -5 -5 -5 -4 -3 -3 -2 -2 -1 ------------ Run | Scr Mat Mat Mat Fac DSF Fac Fac Was Fac DSF Fac Res Arm Res DSF Acc Used RIF Installer . | . . . . . . . . . . . . . . . . . Robots Hacked . | . . . . . . . . . . . . . . . . . Non-combat . | . . . . . . . . . . . . . . . . . Combat . | . . . . . . . . . . . . . . . . . Robot Hacks Applied . | . . . . . . . . . . . . . . . . . Relay Couplers Released . | . . . . . . . . . . . . . . . . . Fabnet Peak Effective % . | . . . . . . . . . . . . . . . . . Robots Rewired 4 | . . . . . . . . . . . . . 4 . . . Allies Hacked . | . . . . . . . . . . . . . . . . . Hacks Repelled . | . . . . . . . . . . . . . . . . . Allies | -11 -10 -9 -8 -7 -7 -6 -5 -5 -5 -5 -4 -3 -3 -2 -2 -1 -------- Run | Scr Mat Mat Mat Fac DSF Fac Fac Was Fac DSF Fac Res Arm Res DSF Acc Total Allies 4 | . . . . . . . . . . . . . 4 . . . Largest Group 4 | . . . . . . . . . . . . . 4 . . . Highest-Rated Group 168 | . . . . . . . . . . . . . 168 . . . Highest-Rated Ally 42 | . . . . . . . . . . . . . 42 . . . Total Orders . | . . . . . . . . . . . . . . . . . Ally Attacks 16 | . . . . . . . . . . . . . 16 . . . Total Damage 378 | . . . . . . . . . . . . . 378 . . . Kills 5 | . . . . . . . . . . . . . 5 . . . Allies Corrupted . | . . . . . . . . . . . . . . . . . Allies Melted . | . . . . . . . . . . . . . . . . . Intel | -11 -10 -9 -8 -7 -7 -6 -5 -5 -5 -5 -4 -3 -3 -2 -2 -1 ------- Run | Scr Mat Mat Mat Fac DSF Fac Fac Was Fac DSF Fac Res Arm Res DSF Acc Robot Analysis Total . | . . . . . . . . . . . . . . . . . Derelict Logs Recovered . | . . . . . . . . . . . . . . . . . Drone Launches . | . . . . . . . . . . . . . . . . . Drone Recoveries . | . . . . . . . . . . . . . . . . . Exploration | -11 -10 -9 -8 -7 -7 -6 -5 -5 -5 -5 -4 -3 -3 -2 -2 -1 ------------- Run | Scr Mat Mat Mat Fac DSF Fac Fac Was Fac DSF Fac Res Arm Res DSF Acc Turns Passed 1787 | 23 77 48 100 12 40 141 73 18 18 28 115 168 189 74 46 617 Spaces Moved 3543 | 25 114 110 239 30 55 395 147 69 69 58 281 556 331 90 45 929 Core 165 | 25 59 . 1 . 14 . . . . 13 44 . . . . 9 Treads . | . . . . . . . . . . . . . . . . . Legs . | . . . . . . . . . . . . . . . . . Wheels . | . . . . . . . . . . . . . . . . . Hover 998 | . . . . . . . . . . . . . 7 90 45 856 Flight 2380 | . 55 110 238 30 41 395 147 69 69 45 237 556 324 . . 64 Fastest Speed 22 | 50 37 37 40 40 25 29 26 26 26 26 25 22 29 71 40 29 Average Speed 36 | 50 44 38 40 40 40 30 26 26 26 38 29 27 32 73 56 43 Slowest Speed 550 | 50 60 40 50 40 50 34 26 26 26 100 50 34 80 80 71 550 Overloaded Moves . | . . . . . . . . . . . . . . . . . Propulsion Burnouts . | . . . . . . . . . . . . . . . . . Robots Hopped 58 | . 1 1 2 . 1 6 4 . . . 1 24 13 . . 5 Cave-ins Triggered . | . . . . . . . . . . . . . . . . . Exploration Rate (%) 25 | 3 37 21 28 2 69 17 5 74 4 46 12 21 30 5 39 27 Regions Visited 16 Branch Regions 1 Pre-discovered Areas . | . . . . . . . . . . . . . . . . . Known Exits Taken 7 | . . . . 1 . 1 . . 1 . 1 1 1 1 . . Unknown Exits Taken 4 | 1 1 1 1 . . . . . . . . . . . . . Scrap Searched . | . . . . . . . . . . . . . . . . . Spaces Dug 12 | . . . . . . 7 1 . . . . . 2 . . 2 Terrain Destroyed 103 | . 30 9 . . . 57 1 . . 2 . . 2 . . 2 Melee 5 | . . . . . . . 1 . . . . . 2 . . 2 Projectile . | . . . . . . . . . . . . . . . . . AOE 98 | . 30 9 . . . 57 . . . 2 . . . . . . Terrain Rammed . | . . . . . . . . . . . . . . . . . Walls Destroyed . | . . . . . . . . . . . . . . . . . Machines Disabled . | . . . . . . . . . . . . . . . . . Actions | -11 -10 -9 -8 -7 -7 -6 -5 -5 -5 -5 -4 -3 -3 -2 -2 -1 --------- Run | Scr Mat Mat Mat Fac DSF Fac Fac Was Fac DSF Fac Res Arm Res DSF Acc Total 3812 | 34 129 113 239 29 67 408 155 68 68 62 307 547 384 94 59 1049 Wait 43 | . . . . . 4 . . . . . 5 1 7 . 4 22 Move 3429 | 24 111 107 234 29 52 382 140 68 68 57 279 513 311 89 44 921 Hop 43 | . 1 1 2 . 1 6 3 . . . 1 19 6 . . 3 Pick Up 34 | 4 3 . . . 1 4 . . . . 1 . 2 1 2 16 Fast Attach 75 | 2 3 . 3 . 8 3 1 . . 1 12 6 13 2 4 17 Attach 30 | 3 1 1 . . 1 3 1 . . 1 4 3 . 1 2 9 Detach 21 | 1 1 1 . . . 1 . . . 2 3 4 4 . . 4 Swap 5 | . 1 . . . . 2 . . . . . . . . . 2 Drop 23 | . 3 1 . . . 4 . . . . . 1 8 . 1 5 Fire 12 | . 5 2 . . . 3 . . . 1 1 . . . . . Melee 65 | . . . . . . . 6 . . . . . 6 1 2 50 Ram 5 | . . . . . . . 4 . . . 1 . . . . . Kick . | . . . . . . . . . . . . . . . . . Crush . | . . . . . . . . . . . . . . . . . Escape Stasis . | . . . . . . . . . . . . . . . . . Rewire 27 | . . . . . . . . . . . . . 27 . . . Trap . | . . . . . . . . . . . . . . . . . Miscellaneous . | . . . . . . . . . . . . . . . . . Route ------- -11/Scrapyard -10/Materials -9/Materials -8/Materials -7/Factory -7/DSF -6/Factory (discovered 5 exits: *Fac / *Low x2 / Ext x2) -5/Factory -5/Waste -5/Factory -5/DSF -4/Factory -3/Research -3/Armory (discovered 2 exits: *Res x2) -2/Research -2/DSF -1/Access History --------- Turn | Location | Event 17 | -11/Scrapyard | Discovered new exit (range 15) 24 | -11/Scrapyard | Entered Materials 96 | -10/Materials | Discovered new exit (range 15) 101 | -10/Materials | Entered another Materials area 101 | -9/Materials | Evolved 2 slots: Propulsion x2 137 | -9/Materials | Discovered new exit (range 16) 149 | -9/Materials | Entered another Materials area 149 | -8/Materials | Evolved 2 slots: Propulsion x1, Utility x1 245 | -8/Materials | Discovered new exit (range 13) 249 | -8/Materials | Entered Factory 249 | -7/Factory | Evolved 2 slots: Power x1, Utility x1 261 | -7/Factory | Identified exit to DSF 261 | -7/Factory | Entered DSF 281 | -7/DSF | Discovered new exit (range 16) 282 | -7/DSF | Additional patrols routed to DSF 301 | -7/DSF | Identified exit to Factory 301 | -7/DSF | Entered Factory 301 | -6/Factory | Evolved 2 slots: Propulsion x1, Utility x1 319 | -6/Factory | Discovered new exit (range 10) 322 | -6/Factory | Identified exit to Lower Caves 369 | -6/Factory | Identified exit to Extension 426 | -6/Factory | Lost 3 parts (1n2u) 437 | -6/Factory | Discovered new exit (range 16) 441 | -6/Factory | Identified exit to Factory 442 | -6/Factory | Entered another Factory area 442 | -5/Factory | Evolved 2 slots: Utility x2 515 | -5/Factory | Sucked down chute 515 | -5/Factory | Entered Waste 521 | -5/Waste | Spotted C-40 Crusher 521 | -5/Waste | Spotted C-40 Crusher 524 | -5/Waste | Spotted C-40 Crusher 529 | -5/Waste | Spotted C-40 Crusher 530 | -5/Waste | EMP discharged 530 | -5/Waste | Discovered new exit (range 12) 533 | -5/Waste | Identified exit to Factory 533 | -5/Waste | Entered Factory 551 | -5/Factory | Identified exit to DSF 551 | -5/Factory | Entered DSF 557 | -5/DSF | System corruption reached 10% 561 | -5/DSF | Discovered new exit (range 16) 569 | -5/DSF | Additional patrols routed to DSF 575 | -5/DSF | Identified exit to Factory 579 | -5/DSF | Entered Factory 579 | -4/Factory | Evolved 2 slots: Utility x2 603 | -4/Factory | Lost 7 parts (5n1u1w) 630 | -4/Factory | Spotted B-86 Titan 688 | -4/Factory | Discovered new exit (range 22) 693 | -4/Factory | Identified exit to Research 694 | -4/Factory | Entered Research 694 | -3/Research | Evolved 2 slots: Propulsion x2 778 | -3/Research | Spotted B-86 Titan 834 | -3/Research | Spotted B-86 Titan 846 | -3/Research | Lost 5 parts (1p3n1u) 856 | -3/Research | Discovered new exit (range 14) 860 | -3/Research | Identified exit to Armory 862 | -3/Research | Entered Armory 881 | -3/Armory | Found Enh. Force Lance 883 | -3/Armory | Found Enh. Force Lance 935 | -3/Armory | Identified exit to Research 1051 | -3/Armory | Entered Research 1051 | -2/Research | Evolved 2 slots: Utility x2 1077 | -2/Research | Lost 8 parts (1p5n2u) 1125 | -2/Research | Identified exit to DSF 1125 | -2/Research | Entered DSF 1136 | -2/DSF | Discovered new exit (range 16) 1156 | -2/DSF | Additional patrols routed to DSF 1163 | -2/DSF | Identified exit to Access 1171 | -2/DSF | Entered Access 1171 | -1/Access | Evolved 2 slots: Utility x2 1213 | -1/Access | Found Prototype Slashing Weapon 1213 | -1/Access | Identified Vibroblade 1313 | -1/Access | Build established: Mutant 1438 | -1/Access | Spotted B-99 Colossus 1507 | -1/Access | Lost 4 parts (1p1n2u) 1580 | -1/Access | Lost 5 parts (2p1n2u) 1618 | -1/Access | Build established: Scavenger-Mutant 1702 | -1/Access | Lost 6 parts (2p3n1u) 1716 | -1/Access | Search patrols dispatched 1743 | -1/Access | Core integrity fell below 50% 1763 | -1/Access | Core integrity fell below 20% 1788 | -1/Access | Destroyed by G-73 Enforcer with Heavy Laser Last Messages --------------- 01765_ Imp. System Shield destroyed. 01768_ Adv. Corruption Screen intercepted 1% system corruption. 01768_ K-01 Serf collects debris. 01770_ Slug penetrates Wall. 01770_ Cld. Q-thruster destroyed. 01771_ K-01 Serf collects debris. 01771_ Penetrated by Slug. 01771_ Cmb. Linear Gravjet destroyed. 01771_ Adv. Corruption Screen intercepted 1% system corruption. 01774_ K-01 Serf collects debris. 01774_ Penetrated by Slug. 01774_ Q-thruster destroyed. 01774_ Penetrated by Slug. 01777_ Gyrokinetic Inverter destroyed. 01777_ Slug penetrates Wall. 01778_ Penetrated by Slug. 01778_ Slug penetrates Wall. 01782_ O-24 Administrator: "IFF HANDSHAKE FAILED. SECURING TERMINAL." 01786_ ALERT: Hostiles spotted, dispatching reinforcements to Terminal A013. Map ----- +----------------------------------------------------+ | #??##+##??????? | | #### #??????? | | #??????# | | ### #??????# | | #?## ##??????# | | ########## #??#%#???????# | | ?????????### ################ #??#=#???????# | | ???????????# #????????????? # #??# #???????# | | ???????????# #???????????? # #??# #???????# | | ???????????# #??????????? # #??# #???????# | | ???????????# #?????????? ?# #??# #???????+ | | ???????????# #????????? ??# #??# #???????# | | ??????????## ##??????? ????# #??# #???????# | | ??????????# #???###+####### #??# #???????? | | ??????????# ##### #??#=#???????? | | ??????????# #??#%#???????? | | ??????????# ???#[######### | | ??????????# """" ???# ## | | ??????????# ##### ""R"" #??# ## | | ??????????# #???### "" "" #??# ## | | ??????????#########?????# #??# #?? ? | | ????????????????????????# #?## ##?##+##? | | ????????????????????????#g A ### ### #? | | ????????????????????????#g #? | | ????????????????????????#g############# ### ] #? | | ????????????????????????#@#???????????##+##?## ##? | | ????????????????????????#g#???????????? ???# #?? | | ????????????????????????#g#???????????? ???# #?? | | ????????????????????????# #???????????? ???# #?? | | ????????????????????????# #???????????? ???# #?? | | ????????????????????????# #????????#####+##### #?? | | ???????????????????????? ???? ### | | ???????????????????????? ???? | | ???????????????????????? ???? ### | | ???????????????????????? ????? #?? | | ????????????????????????###?????## ##### #?? | | ???????????????????????????????????????# #?? | | ???????????????????????????????????????# #?? | | ???????????????????????????????????????# ##### #? | | ???????????????????????????????????????#+????# #?# | | ?????????????????????????????????????????????? ??? | | ?????????????????????????????????????????????? ??? | | ?????????????????????????????????????????????? ??? | | ?????????????????????????????????????????????? ??? | | ??????????????????????????????????????????????+??? | | ?????????????????????????????????????????????????? | | ?????????????????????????????????????????????????? | | ?????????????????????????????????????????????????? | | ?????????????????????????????????????????????????? | | ?????????????????????????????????????????????????? | +----------------------------------------------------+ Best States ------------- Heat Dissipation 71 Energy Generation 45 Energy Capacity 450 Matter Stores 300 Matter Capacity 300 Sight Range 22 Terrain Scan Range 16 Terrain Scan Density 10 Jamming Range 12 Cloak Strength 4 Base Temperature (-) 200 Corruption Block 40 Armor Coverage 150 Resistance: TH 20 Propulsion Shielding 33 Evasion (%) 64 Melee Accuracy 24 Recoil Reduction 2 Offensive Hacking 12 Defensive Hacking 24 Item Schematics ----------------- None Robot Schematics ------------------ None Fabricated ------------ Nothing Alien Tech Used ----------------- None Achievements -------------- None Challenges ------------ None Game ------ Seed CentriumTiamatNukerbomber Manual? 0 Play Time 00:45:08 Cumulative 478.2 hours Start 2022.09.01 @ 16:02:45 End 2022.09.01 @ 16:50:22 Sessions 1 Manual Loads 0 Difficulty Rogue Special Mode None Game No. 546 Rogue 545 Adventurer 0 Explorer 1 Win Type - Total 15 Types 10/0/2/3/0/0/0/0/0 Lore% 80 Gallery% 88 Achievement% 70 Wizard Run 0 Options --------- ASCII 0 Keyboard 1 Movement Vi Keybinds 0 Fullscreen 1 Font 18/SmallcapsGlow Map View 76x50 Tactical HUD 1 Map Filters NONE Filters NONE Steam 1 RUN: 8a561138-e927-48b9-b1e5-69b2d8eecfd1